bitfinex/quotes_SOLUSD_20250822
["timestamp","ask_amount","ask_price","bid_price","bid_amount"]
[1755879344489,3.80544247,196.69,196.68,13.43268007]
[1755879345275,0.06,196.71,196.69,0.28432314]
[1755879345493,0.06,196.71,196.7,39.87991715]
[1755879345697,0.06,196.73,196.71,13.87991715]
[1755879345907,0.06,196.73,196.72,27.02827408]
[1755879346406,0.06,196.73,196.7,13.14835693]
[1755879346621,0.06,196.73,196.69,0.28432314]
[1755879346792,0.06,196.73,196.72,26.0]
[1755879346994,0.06,196.73,196.72,39.14835693]
[1755879347804,0.06,196.73,196.72,34.05959718]
[1755879348009,0.06,196.73,196.72,13.14835693]
[1755879348215,0.75,196.73,196.72,13.14835693]
[1755879348421,0.75,196.73,196.65,18.72452008]
[1755879348707,0.75,196.73,196.72,13.14835693]
[1755879348879,0.75,196.73,196.62,13.59559401]
[1755879349079,0.06,196.73,196.72,13.14835693]
[1755879350311,0.75,196.73,196.72,13.14835693]
[1755879350482,0.06,196.73,196.72,13.14835693]
[1755879350684,0.06,196.73,196.72,39.14835693]
[1755879351207,0.06,196.73,196.72,26.0]
[1755879351386,0.06,196.73,196.72,39.14835693]
[1755879352083,0.06,196.73,196.72,39.43268007]
[1755879352286,0.06,196.73,196.72,13.43268007]
[1755879352988,0.06,196.73,196.72,39.43268007]
[1755879353908,0.06,196.73,196.72,26.28432314]
[1755879354289,0.06,196.73,196.72,39.43268007]
[1755879354812,0.06,196.73,196.72,53.02827408]
[1755879355406,0.06,196.77,196.75,78.38]
[1755879355607,0.69,196.76,196.75,104.38]
[1755879355818,0.69,196.76,196.75,117.52835693]
[1755879355997,0.06,196.77,196.75,26.0]
[1755879356318,0.06,196.77,196.76,13.14835693]
[1755879356693,0.75,196.77,196.76,13.14835693]
[1755879356894,0.75,196.77,196.68,0.03]
[1755879357133,0.75,196.77,196.69,26.0]
[1755879357315,13.14835693,196.74,196.68,0.03]
[1755879357492,13.83835693,196.73,196.68,13.17835693]
[1755879357690,0.69,196.72,196.69,13.14835693]
[1755879357893,0.69,196.71,196.69,13.14835693]
[1755879358204,0.69,196.7,196.69,13.14835693]
[1755879358618,0.69,196.7,196.68,0.03]
[1755879358785,0.69,196.69,196.68,0.03]
[1755879358989,0.69,196.69,196.68,13.17835693]
[1755879359190,0.69,196.69,196.68,0.03]
[1755879359605,0.69,196.72,196.68,13.17835693]
[1755879359810,0.69,196.71,196.69,13.14835693]
[1755879360117,0.06,196.77,196.69,13.14835693]
[1755879360299,0.69,196.7,196.68,0.03]
[1755879360618,13.14835693,196.74,196.69,13.14835693]
[1755879361117,0.69,196.73,196.68,0.03]
[1755879361303,13.14835693,196.7,196.68,0.03]
[1755879361502,13.83835693,196.69,196.63,13.14835693]
[1755879361820,0.28432314,196.71,196.48,0.03]
[1755879361821,13.14835693,196.64,196.5,0.06]
[1755879362020,13.59559401,196.67,196.5,0.06]
[1755879362021,13.14835693,196.62,196.5,0.03]
[1755879362194,0.69,196.61,196.5,0.03]
[1755879362393,13.59559401,196.6,196.52,13.14835693]
[1755879362589,13.83835693,196.59,196.54,13.14835693]
[1755879362789,13.83835693,196.59,196.5,0.03]
[1755879362790,13.14835693,196.55,196.5,0.03]
[1755879362990,13.14835693,196.53,196.51,5.9972817]
[1755879363211,14.28559401,196.52,196.51,5.9972817]
[1755879363411,0.69,196.52,196.51,5.9972817]
[1755879363915,53.43395094,196.52,196.51,5.2772817]
[1755879364216,14.56991715,196.52,196.51,4.4372817]
[1755879364418,27.71827408,196.52,196.51,4.4372817]
[1755879364718,0.69,196.52,196.51,4.4372817]
[1755879364919,37.71827408,196.52,196.51,4.4372817]
[1755879365127,14.56991715,196.52,196.51,4.4372817]
[1755879365305,13.59559401,196.52,196.51,4.4372817]
[1755879365501,14.46991715,196.52,196.51,4.4372817]
[1755879366023,79.5,196.53,196.51,4.4372817]
[1755879366190,0.59,196.59,196.52,13.14835693]
[1755879366391,2.65460906,196.61,196.56,13.14835693]
[1755879366689,2.65460906,196.61,196.51,30.4372817]
[1755879366905,39.68,196.64,196.6,13.14835693]
[1755879367221,53.64,196.64,196.62,13.14835693]
[1755879367424,53.64,196.64,196.63,13.14835693]
[1755879367719,2.65341053,196.69,196.63,13.82835693]
[1755879367924,0.06,196.74,196.68,13.14835693]
[1755879368104,0.06,196.74,196.71,13.14835693]
[1755879368427,0.06,196.74,196.62,13.14835693]
[1755879368428,39.14835693,196.72,196.62,13.14835693]
[1755879368610,0.14216157,196.69,196.59,26.0]
[1755879368798,13.14835693,196.67,196.59,26.0]
[1755879369000,13.59559401,196.66,196.58,13.14835693]
[1755879369194,13.59559401,196.66,196.59,0.68]
[1755879369414,13.59559401,196.66,196.57,26.0]
[1755879369415,13.59559401,196.64,196.57,26.0]
[1755879369655,13.14835693,196.62,196.54,0.68]
[1755879369800,13.14835693,196.62,196.51,4.4372817]
[1755879369801,13.14835693,196.56,196.51,4.4372817]
[1755879370001,0.28432314,196.57,196.51,4.4372817]
[1755879370200,67.13559401,196.58,196.51,4.4372817]
[1755879370398,53.54,196.58,196.55,13.14835693]
[1755879370722,66.68835693,196.58,196.51,4.4372817]
[1755879370899,13.14835693,196.55,196.51,4.4372817]
[1755879371102,13.14835693,196.54,196.51,4.4372817]
[1755879371313,13.73835693,196.54,196.51,4.4372817]
[1755879371623,13.59559401,196.54,196.51,4.4372817]
[1755879371948,26.74395094,196.54,196.51,4.4372817]
[1755879372101,27.02827408,196.52,196.51,4.4372817]
[1755879372424,26.74395094,196.53,196.51,4.4372817]
[1755879372800,13.59559401,196.53,196.51,4.4372817]
[1755879372996,26.0,196.55,196.51,4.4372817]
[1755879372997,13.14835693,196.52,196.51,4.4372817]
[1755879373214,53.61827408,196.52,196.51,4.3372817]
[1755879374042,27.61827408,196.52,196.51,4.3372817]
[1755879374330,81.63827408,196.52,196.51,4.3372817]
[1755879374805,91.63827408,196.52,196.51,4.3372817]
[1755879375131,37.02827408,196.5,196.49,0.03]
[1755879375329,23.87991715,196.49,196.48,0.03]
[1755879375500,37.51827408,196.49,196.48,0.03]
[1755879375944,0.63216157,196.49,196.48,0.03]
[1755879376147,81.19611251,196.49,196.48,0.03]
[1755879376352,67.69991715,196.49,196.48,0.03]
[1755879376723,80.84827408,196.49,196.48,0.03]
[1755879377543,67.69991715,196.49,196.48,0.03]
[1755879377746,80.84827408,196.49,196.48,0.03]
[1755879378559,13.73775558,196.48,196.47,0.03]
[1755879378724,13.87991715,196.48,196.47,0.03]
[1755879379232,27.02827408,196.48,196.47,0.03]
[1755879379676,13.87991715,196.48,196.47,0.03]
[1755879379951,26.74395094,196.48,196.47,0.03]
[1755879380122,53.82,196.49,196.47,0.7]
[1755879380330,53.48,196.48,196.47,0.03]
[1755879380542,80.22395094,196.48,196.47,0.03]
[1755879381257,67.07559401,196.48,196.47,0.03]
[1755879382027,80.22395094,196.48,196.47,0.03]
[1755879382248,80.50827408,196.48,196.47,0.03]
[1755879382448,80.96827408,196.48,196.47,0.03]
[1755879382832,67.81991715,196.48,196.47,0.03]
[1755879383033,80.96827408,196.48,196.47,0.03]
[1755879383660,67.81991715,196.48,196.47,0.03]
[1755879384164,80.96827408,196.48,196.47,0.03]
[1755879384363,90.96827408,196.48,196.47,0.03]
[1755879384674,94.70650683,196.48,196.47,0.03]
[1755879385161,94.70650683,196.48,196.45,0.03]
[1755879385162,49.59559401,196.46,196.45,0.03]
[1755879385362,39.87991715,196.4,196.39,0.1]
[1755879385536,92.93991715,196.4,196.39,0.1]
[1755879385871,0.28432314,196.34,196.31,0.1]
[1755879386071,26.74395094,196.32,196.31,0.1]
[1755879386261,27.02827408,196.32,196.31,0.1]
[1755879387337,13.87991715,196.32,196.31,0.1]
[1755879387538,26.74395094,196.32,196.31,0.1]
[1755879387740,53.04,196.32,196.31,0.77]
[1755879388168,66.63559401,196.32,196.31,0.1]
[1755879388362,66.91991715,196.32,196.31,0.1]
[1755879388662,66.63559401,196.32,196.31,0.1]
[1755879389651,66.91991715,196.32,196.31,0.1]
[1755879390047,80.06827408,196.32,196.31,0.1]
[1755879391159,66.91991715,196.32,196.31,0.1]
[1755879391366,80.06827408,196.32,196.31,0.1]
[1755879391564,66.91991715,196.32,196.31,0.1]
[1755879392049,80.06827408,196.32,196.31,0.1]
[1755879392253,66.91991715,196.32,196.31,0.1]
[1755879392655,80.06827408,196.32,196.31,0.1]
[1755879393063,80.42827408,196.32,196.31,0.1]
[1755879393269,84.1515797,196.32,196.31,0.1]
[1755879393856,39.87991715,196.31,196.3,0.1]
[1755879394070,109.8115797,196.31,196.3,0.1]
[1755879394447,83.8115797,196.31,196.3,0.1]
[1755879394754,70.66322277,196.31,196.3,0.1]
[1755879394955,83.8315797,196.31,196.3,0.1]
[1755879395183,80.10827408,196.31,196.3,0.1]
[1755879395347,4.00702676,196.31,196.3,0.1]
[1755879395557,70.68262077,196.31,196.3,0.1]
[1755879395771,83.8309777,196.31,196.3,0.77]
[1755879395970,70.68262077,196.31,196.3,0.77]
[1755879396278,56.80270362,196.31,196.3,0.1]
[1755879396666,56.80270362,196.31,196.3,0.77]
[1755879397256,56.80270362,196.31,196.3,0.1]
[1755879397464,83.69221798,196.31,196.3,0.1]
[1755879397754,70.68602262,196.31,196.3,0.1]
[1755879397954,110.19437955,196.31,196.3,0.1]
[1755879398378,110.19437955,196.31,196.28,0.1]
[1755879398379,13.59559401,196.29,196.28,0.1]
[1755879398559,0.28432314,196.24,196.11,0.67]
[1755879398759,13.59559401,196.19,196.11,0.67]
[1755879399062,56.80990393,196.18,196.11,0.67]
[1755879399371,56.80990393,196.18,195.92,10.0]
[1755879399372,13.87991715,196.16,196.08,0.67]
[1755879399559,13.14835693,196.09,196.08,0.67]
[1755879399764,13.14835693,196.16,196.09,0.67]
[1755879399947,10.13,196.24,196.09,0.67]
[1755879399948,53.08,196.15,196.09,0.67]
[1755879400154,26.0,196.22,196.14,13.14835693]
[1755879400371,13.14835693,196.2,196.15,13.14835693]
[1755879400552,13.73775558,196.2,196.14,13.81835693]
[1755879400755,13.14835693,196.18,196.1,26.67]
[1755879401057,66.22835693,196.17,196.11,0.67]
[1755879401273,53.08,196.17,196.11,0.67]
[1755879401479,26.7,196.22,196.11,0.67]
[1755879401480,13.14835693,196.21,196.11,0.67]
[1755879401776,13.87991715,196.18,196.13,13.14835693]
[1755879401961,0.7,196.22,196.1,26.0]
[1755879401962,53.08,196.17,196.14,13.81835693]
[1755879402169,53.08,196.17,196.11,0.67]
[1755879402367,53.08,196.17,196.13,13.14835693]
[1755879402688,53.08,196.17,196.1,0.67]
[1755879402869,53.08,196.17,196.13,13.14835693]
[1755879403067,53.08,196.17,196.16,13.14835693]
[1755879403284,53.08,196.17,196.15,13.14835693]
[1755879403483,53.08,196.16,196.15,13.81835693]
[1755879404157,53.08,196.16,196.15,13.14835693]
[1755879404462,13.14835693,196.2,196.15,13.81835693]
[1755879404666,56.82509356,196.19,196.1,26.0]
[1755879404991,56.82509356,196.19,196.11,0.67]
[1755879404992,53.08,196.19,196.11,0.67]
[1755879405289,53.08,196.19,196.17,13.14835693]
[1755879406079,53.08,196.19,196.17,13.81835693]
[1755879406250,53.08,196.19,196.16,13.14835693]
[1755879406457,53.08,196.19,196.17,13.14835693]
[1755879406680,19.65840961,196.39,196.18,13.81835693]
[1755879406681,0.7,196.28,196.18,13.81835693]
[1755879406854,0.7,196.28,196.23,13.14835693]
[1755879406855,17.33870709,196.27,196.23,13.14835693]
[1755879407059,16.89147001,196.26,196.21,13.14835693]
[1755879407287,13.14835693,196.22,196.14,0.68]
[1755879407459,56.82311308,196.21,196.14,0.68]
[1755879407766,3.74311308,196.2,196.13,26.0]
[1755879407964,3.74311308,196.2,196.15,13.14835693]
[1755879408190,3.74311308,196.2,196.14,0.68]
[1755879408191,53.08,196.19,196.13,0.68]
[1755879408480,53.08,196.18,196.17,13.14835693]
[1755879408783,53.08,196.19,196.13,0.68]
[1755879408990,53.08,196.19,196.13,13.14835693]
[1755879409157,53.08,196.19,196.13,0.68]
[1755879409476,53.08,196.19,196.15,13.14835693]
[1755879409707,13.14835693,196.18,196.1,0.68]
[1755879409880,53.8,196.19,196.1,0.68]
[1755879409881,53.08,196.19,196.14,13.14835693]
[1755879410186,53.08,196.19,196.15,0.68]
[1755879410374,53.08,196.19,196.16,0.68]
[1755879410706,53.08,196.19,196.18,13.14835693]
[1755879410897,53.08,196.19,196.17,13.14835693]
[1755879411199,13.14835693,196.23,196.18,13.14835693]
[1755879411360,0.72,196.28,196.22,13.14835693]
[1755879411560,0.72,196.28,196.19,0.68]
[1755879411757,0.72,196.34,196.27,13.14835693]
[1755879411985,53.06,196.33,196.24,0.68]
[1755879412196,13.59559401,196.32,196.27,13.14835693]
[1755879412382,8.73363572,196.29,196.24,8.73363572]
[1755879412688,13.59559401,196.24,196.16,34.73363572]
[1755879412894,8.73363572,196.22,196.16,34.73363572]
[1755879413188,53.06,196.23,196.16,8.73363572]
[1755879413400,8.73363572,196.18,196.11,0.68]
[1755879413600,61.79363572,196.18,196.13,8.73363572]
[1755879414130,53.06,196.18,196.13,8.73363572]
[1755879414413,53.06,196.18,196.06,17.71566951]
[1755879414414,8.73363572,196.14,196.06,0.68]
[1755879414580,61.77363572,196.13,196.06,0.68]
[1755879414913,8.73363572,196.12,196.06,0.68]
[1755879415511,53.04,196.13,196.07,8.73363572]
[1755879415675,8.73363572,196.12,196.06,0.68]
[1755879415874,61.77363572,196.11,196.04,0.68]
[1755879416073,53.04,196.11,196.04,0.68]
[1755879416277,61.77363572,196.11,196.04,0.68]
[1755879416607,53.04,196.11,196.09,0.03]
[1755879417098,53.04,196.11,196.09,8.76363572]
[1755879417402,53.04,196.11,196.09,0.03]
[1755879417585,53.04,196.11,196.09,8.76363572]
[1755879418120,53.76,196.11,196.09,0.03]
[1755879418573,62.49363572,196.11,196.09,0.03]
[1755879418977,14.59991715,196.15,196.09,0.03]
[1755879419179,53.04,196.14,196.1,8.73363572]
[1755879419380,1.00432314,196.13,196.09,0.03]
[1755879419681,8.73363572,196.11,196.09,0.03]
[1755879419876,53.04,196.1,196.09,0.03]
[1755879420300,53.76,196.1,196.09,0.03]
[1755879420489,53.04,196.1,196.09,0.03]
[1755879420803,0.72,196.16,196.09,8.76363572]
[1755879421014,0.72,196.19,196.09,0.03]
[1755879421229,0.72,196.19,196.1,0.68]
[1755879421392,0.78,196.23,196.11,26.0]
[1755879421590,8.73363572,196.17,196.11,26.0]
[1755879421792,53.02,196.16,196.09,0.03]
[1755879422107,53.02,196.15,196.11,8.73363572]
[1755879422311,8.73363572,196.14,196.09,8.76363572]
[1755879422510,53.02,196.15,196.11,8.73363572]
[1755879422701,53.02,196.15,196.13,8.73363572]
[1755879423020,39.78,196.25,196.09,0.03]
[1755879423313,13.73775558,196.18,196.09,0.71]
[1755879423487,43.82376479,196.25,196.15,26.0]
[1755879423691,43.82376479,196.25,196.09,0.03]
[1755879423692,0.72,196.22,196.19,8.73363572]
[1755879423902,22.32922973,196.24,196.11,26.0]
[1755879423903,53.02,196.21,196.11,26.0]
[1755879424148,53.02,196.21,196.2,8.73363572]
[1755879424419,15.312763,196.34,196.2,8.73363572]
[1755879424420,53.0,196.27,196.2,18.14727144]
[1755879424599,53.0,196.27,196.22,8.73363572]
[1755879424805,53.0,196.27,196.22,34.73363572]
[1755879425000,0.72,196.33,196.22,48.61355287]
[1755879425218,53.0,196.33,196.22,26.68]
[1755879425417,53.0,196.33,196.2,12.74521799]
[1755879425418,53.0,196.33,196.32,8.73363572]
[1755879425619,53.0,196.33,196.26,26.0]
[1755879425921,53.0,196.33,196.32,8.73363572]
[1755879426424,0.72,196.37,196.27,26.68]
[1755879426425,53.0,196.35,196.27,0.68]
[1755879426604,53.0,196.35,196.32,8.73363572]
[1755879426804,53.0,196.35,196.33,8.73363572]
[1755879427327,13.65559401,196.39,196.25,26.0]
[1755879427328,0.06,196.39,196.34,8.73363572]
[1755879427527,0.06,196.39,196.38,8.73363572]
[1755879427829,52.98,196.48,196.38,35.41363572]
[1755879427992,52.98,196.48,196.42,8.73363572]
[1755879428302,0.06,196.49,196.42,9.41363572]
[1755879428694,0.06,196.49,196.45,26.0]
[1755879428890,0.06,196.49,196.48,8.73363572]
[1755879429533,0.06,196.49,196.44,26.0]
[1755879429825,0.06,196.49,196.48,8.73363572]
[1755879430027,0.06,196.49,196.46,8.73363572]
[1755879430234,0.06,196.49,196.48,8.73363572]
[1755879430411,0.06,196.49,196.48,13.14470753]
[1755879430606,0.06,196.49,196.48,13.82470753]
[1755879431231,0.06,196.49,196.48,13.14470753]
[1755879431447,0.06,196.49,196.41,13.59559401]
[1755879431448,0.06,196.49,196.4,0.68]
[1755879431725,0.06,196.49,196.43,26.0]
[1755879431904,0.06,196.49,196.41,0.68]
[1755879431905,0.06,196.49,196.45,26.0]
[1755879432283,0.06,196.47,196.42,13.14470753]
[1755879432414,0.06,196.47,196.43,0.68]
[1755879432594,0.06,196.47,196.46,13.14470753]
[1755879433330,0.06,196.47,196.41,0.68]
[1755879433825,0.06,196.47,196.46,13.14470753]
[1755879434333,0.06,196.49,196.48,26.0]
[1755879434506,0.06,196.49,196.48,39.14470753]
[1755879434701,0.06,196.49,196.48,39.82470753]
[1755879434925,0.06,196.51,196.48,39.82470753]
[1755879435129,0.06,196.51,196.5,39.14470753]
[1755879435643,0.06,196.53,196.52,26.0]
[1755879435802,0.06,196.53,196.52,39.14470753]
[1755879436032,0.06,196.53,196.52,39.82470753]
[1755879436357,8.67515141,196.67,196.56,26.0]
[1755879436561,8.67515141,196.67,196.66,13.14470753]
[1755879436859,8.67515141,196.67,196.6,26.0]
[1755879436860,7.95515141,196.67,196.6,26.0]
[1755879437152,7.95515141,196.67,196.66,13.14470753]
[1755879437738,8.62515141,196.67,196.59,26.0]
[1755879438062,7.95515141,196.67,196.66,13.14470753]
[1755879438220,0.2,196.69,196.66,13.14470753]
[1755879438550,0.2,196.69,196.68,13.14470753]
[1755879438769,0.2,196.69,196.62,0.66]
[1755879438952,0.87,196.69,196.61,26.0]
[1755879439269,0.87,196.69,196.59,0.66]
[1755879439270,0.87,196.69,196.66,13.14470753]
[1755879439454,0.67,196.68,196.66,13.14470753]
[1755879439637,0.67,196.68,196.67,13.14470753]
[1755879440030,0.2,196.69,196.64,0.66]
[1755879440223,0.2,196.69,196.68,13.14470753]
[1755879440527,0.2,196.69,196.62,26.0]
[1755879440731,0.87,196.69,196.6,26.0]
[1755879441122,0.87,196.69,196.66,13.14470753]
[1755879441354,0.87,196.69,196.59,0.66]
[1755879441355,26.0,196.68,196.59,0.66]
[1755879441539,26.0,196.68,196.65,13.14470753]
[1755879441853,0.95432314,196.67,196.62,13.14470753]
[1755879442061,0.67,196.66,196.62,13.14470753]
[1755879442349,66.22903067,196.67,196.48,13.595594]
[1755879442350,14.09903067,196.65,196.48,13.595594]
[1755879442554,53.08432314,196.67,196.5,5.16954793]
[1755879442555,13.87991715,196.6,196.5,5.16954793]
[1755879442860,13.87991715,196.58,196.5,18.31425546]
[1755879443175,13.59559401,196.56,196.45,0.66]
[1755879443450,13.59559401,196.56,196.42,13.80470753]
[1755879443656,13.14470753,196.54,196.42,0.66]
[1755879443949,0.95432314,196.55,196.49,13.14470753]
[1755879444126,0.67,196.55,196.43,13.59559401]
[1755879444322,0.67,196.57,196.54,13.14470753]
[1755879444528,0.67,196.57,196.48,0.66]
[1755879444787,0.67,196.57,196.55,13.14470753]
[1755879445066,52.76,196.61,196.56,13.14470753]
[1755879445274,52.76,196.61,196.6,13.14470753]
[1755879445930,52.76,196.61,196.54,0.66]
[1755879446126,52.76,196.61,196.6,13.14470753]
[1755879447061,2.65373053,196.73,196.6,13.14470753]
[1755879447257,2.65373053,196.73,196.57,0.66]
[1755879447258,79.48030154,196.68,196.63,13.14470753]
[1755879447558,79.48030154,196.68,196.57,0.66]
[1755879447559,52.74,196.68,196.59,26.66]
[1755879447768,0.2,196.69,196.67,13.14470753]
[1755879447971,0.2,196.69,196.68,13.14470753]
[1755879448530,0.2,196.69,196.62,0.66]
[1755879448734,0.2,196.69,196.6,26.0]
[1755879449166,0.2,196.69,196.64,13.14470753]
[1755879449368,0.2,196.69,196.6,26.0]
[1755879449369,0.2,196.69,196.67,13.14470753]
[1755879449543,0.2,196.69,196.6,26.66]
[1755879449855,0.2,196.69,196.66,13.14470753]
[1755879450243,0.2,196.69,196.68,13.14470753]
[1755879451077,0.2,196.69,196.62,0.66]
[1755879451277,0.2,196.69,196.68,13.14470753]
[1755879451476,0.28432314,196.67,196.56,0.66]
[1755879451708,13.14470753,196.62,196.57,13.14470753]
[1755879451857,65.82470753,196.62,196.57,13.14470753]
[1755879452169,66.49470753,196.62,196.57,13.14470753]
[1755879452371,13.59559401,196.59,196.52,0.03]
[1755879452575,0.67,196.61,196.53,13.14470753]
[1755879452576,26.67,196.61,196.53,13.14470753]
[1755879452876,14.54991715,196.6,196.52,13.17470753]
[1755879453251,13.14470753,196.58,196.53,13.14470753]
[1755879453572,52.68,196.62,196.56,13.14470753]
[1755879453881,0.67,196.67,196.61,13.14470753]
[1755879454080,52.66,196.64,196.63,13.14470753]
[1755879454382,66.47470753,196.64,196.59,13.14470753]
[1755879454580,0.67,196.63,196.59,13.14470753]
[1755879454883,0.67,196.63,196.53,26.0]
[1755879454884,0.67,196.62,196.53,26.0]
[1755879455182,52.66,196.64,196.6,13.14470753]
[1755879455361,53.33,196.64,196.6,13.14470753]
[1755879455561,14.54991715,196.63,196.52,0.03]
[1755879455751,14.54991715,196.63,196.52,0.69]
[1755879455980,0.28432314,196.59,196.52,13.17470753]
[1755879456272,53.33,196.58,196.52,0.03]
[1755879456597,13.14470753,196.54,196.52,0.03]
[1755879456960,14.54991715,196.57,196.52,0.03]
[1755879457175,0.67,196.54,196.52,0.03]
[1755879457379,52.64,196.55,196.53,13.14470753]
[1755879457596,0.67,196.6,196.52,0.03]
[1755879457883,52.64,196.59,196.53,0.66]
[1755879458198,52.64,196.59,196.52,0.03]
[1755879458357,52.64,196.59,196.55,13.14470753]
[1755879458558,52.64,196.59,196.52,0.03]
[1755879458867,0.67,196.58,196.52,0.03]
[1755879459064,13.14470753,196.57,196.52,13.17470753]
[1755879459273,13.87991715,196.58,196.54,13.14470753]
[1755879459884,13.59559401,196.63,196.56,13.14470753]
[1755879460067,52.62,196.62,196.58,13.14470753]
[1755879460285,0.67,196.61,196.57,13.14470753]
[1755879460482,52.62,196.62,196.59,13.14470753]
[1755879460691,52.62,196.62,196.61,13.14470753]
[1755879460987,52.6,196.64,196.61,13.14470753]
[1755879461481,52.6,196.64,196.56,26.0]
[1755879461997,65.74470753,196.64,196.59,13.14470753]
[1755879462160,66.41470753,196.64,196.59,13.14470753]
[1755879462487,13.59559401,196.66,196.56,0.66]
[1755879462488,52.6,196.66,196.56,0.66]
[1755879462655,52.6,196.66,196.61,13.14470753]
[1755879462856,0.67,196.65,196.61,13.14470753]
[1755879463084,0.67,196.65,196.56,0.66]
[1755879463085,0.67,196.64,196.56,0.66]
[1755879463291,0.67,196.64,196.6,13.14470753]
[1755879463459,52.45528596,196.66,196.62,13.14470753]
[1755879463659,0.67,196.65,196.62,13.14470753]
[1755879463873,0.67,196.64,196.56,0.66]
[1755879464085,13.14470753,196.61,196.52,0.03]
[1755879464286,52.58,196.6,196.53,3.67646131]
[1755879464469,52.58,196.6,196.56,13.14470753]
[1755879464798,52.58,196.6,196.58,13.14470753]
[1755879464966,52.56,196.63,196.59,16.8218674]
[1755879465173,52.56,196.63,196.62,13.14470753]
[1755879465365,52.56,196.63,196.56,26.0]
[1755879465681,52.56,196.63,196.57,13.14470753]
[1755879465682,0.67,196.62,196.57,13.14470753]
[1755879465882,0.67,196.61,196.57,13.14470753]
[1755879466089,52.56,196.63,196.52,0.03]
[1755879466274,52.56,196.63,196.59,13.14470753]
[1755879466478,0.67,196.62,196.59,13.14470753]
[1755879466678,0.67,196.61,196.52,0.03]
[1755879466868,13.81470753,196.61,196.56,13.14470753]
[1755879467192,13.14470753,196.57,196.53,0.03]
[1755879467491,27.02462468,196.54,196.53,0.03]
[1755879467694,27.70462468,196.54,196.53,0.03]
[1755879468469,3.82199629,196.46,196.43,13.14470753]
[1755879468698,56.28126529,196.45,196.44,13.14470753]
[1755879469075,56.28126529,196.45,196.33,6.17800371]
[1755879469076,56.28126529,196.45,196.33,17.65997212]
[1755879469385,27.03631222,196.45,196.43,13.14470753]
[1755879469585,27.03631222,196.45,196.35,13.59559401]
[1755879469586,27.03631222,196.45,196.44,16.86136838]
[1755879469832,27.03631222,196.45,196.44,3.71666085]
[1755879469981,27.03631222,196.45,196.44,16.86136838]
[1755879470462,27.03631222,196.45,196.44,39.14470753]
[1755879470463,3.77432319,196.45,196.44,39.14470753]
[1755879470665,3.82199629,196.49,196.44,39.14470753]
[1755879470666,3.82199629,196.53,196.45,26.0]
[1755879470900,3.82199629,196.53,196.52,13.14470753]
[1755879471107,3.82199629,196.53,196.45,26.0]
[1755879471270,3.82199629,196.52,196.49,13.14470753]
[1755879471469,3.82199629,196.48,196.46,13.14470753]
[1755879471712,3.82199629,196.48,196.36,13.73775558]
[1755879471871,3.82199629,196.48,196.44,13.14470753]
[1755879471872,52.5,196.47,196.44,13.14470753]
[1755879472063,4.50199629,196.46,196.42,13.14470753]
[1755879472282,3.82199629,196.44,196.33,13.59559401]
[1755879472472,3.82199629,196.42,196.34,3.73175276]
[1755879472673,3.82199629,196.39,196.35,3.73175276]
[1755879472892,3.82199629,196.37,196.36,3.73175276]
[1755879473110,4.50199629,196.37,196.36,3.73175276]
[1755879473679,4.50199629,196.37,196.36,2.29175276]
[1755879473680,18.38191344,196.37,196.36,2.29175276]
[1755879473873,4.50199629,196.37,196.36,2.29175276]
[1755879474288,18.38191344,196.37,196.36,2.29175276]
[1755879474478,3.82199629,196.34,196.28,0.66]
[1755879474685,3.82199629,196.33,196.28,0.66]